bitfinex/quotes_SOLUSD_20251018
["timestamp","ask_amount","ask_price","bid_price","bid_amount"]
[1760812958606,4.13286024,186.15,186.14,0.2]
[1760812959432,3.46286024,186.15,186.14,0.2]
[1760812961239,3.46286024,186.15,186.14,0.89]
[1760812963430,3.46286024,186.15,186.14,0.2]
[1760812965136,3.46286024,186.15,186.14,0.88]
[1760812969225,3.46286024,186.16,186.14,0.88]
[1760812969425,3.46286024,186.16,186.15,0.68]
[1760812970924,3.46286024,186.16,186.14,0.88]
[1760812971123,3.46286024,186.15,186.14,0.88]
[1760812972422,3.46286024,186.16,186.14,0.88]
[1760812974742,3.46286024,186.16,186.15,0.68]
[1760812976234,3.46286024,186.16,186.14,0.88]
[1760812977228,3.46286024,186.16,186.15,0.68]
[1760812977550,3.46286024,186.16,186.14,0.2]
[1760812977736,3.46286024,186.16,186.14,0.88]
[1760812978750,3.46286024,186.17,186.14,0.88]
[1760812981433,3.46286024,186.17,186.15,0.68]
[1760812981632,3.46286024,186.17,186.14,0.2]
[1760812981935,3.46286024,186.17,186.14,0.88]
[1760812982144,4.18286024,186.17,186.14,0.88]
[1760812982756,3.46286024,186.17,186.14,0.88]
[1760812982956,3.46286024,186.16,186.14,0.88]
[1760812988860,3.46286024,186.16,186.14,6.25228543]
[1760812989163,3.46286024,186.17,186.14,6.25228543]
[1760812989461,3.46286024,186.17,186.14,12.50457086]
[1760812989763,3.46286024,186.17,186.14,6.25228543]
[1760812990263,4.13286024,186.17,186.14,0.88]
[1760812990949,3.46286024,186.16,186.14,0.88]
[1760812993059,3.46286024,186.16,186.15,0.69]
[1760812993255,3.46286024,186.17,186.15,0.69]
[1760812993433,3.46286024,186.17,186.14,0.87]
[1760812993640,3.46286024,186.16,186.14,0.87]
[1760812994258,3.46286024,186.16,186.14,4.33286024]
[1760812994453,2.80901289,186.18,186.15,0.67]
[1760812994656,3.46286024,186.2,186.15,0.67]
[1760812994964,0.68,186.21,186.15,0.67]
[1760812994965,102.1,186.19,186.16,3.62474212]
[1760812995145,102.1,186.19,186.17,6.04143471]
[1760812995850,102.1,186.19,186.17,22.19347928]
[1760812997970,102.1,186.19,186.18,0.67]
[1760812998459,102.1,186.19,186.17,21.52347928]
[1760812998648,102.1,186.19,186.17,22.19347928]
[1760812999555,102.1,186.19,186.17,16.82204457]
[1760813002865,102.1,186.19,186.18,0.67]
[1760813004148,102.1,186.19,186.17,22.19345571]
[1760813008969,102.1,186.19,186.17,16.82204457]
[1760813009266,4.14286024,186.18,186.14,0.2]
[1760813009456,0.68,186.18,186.16,16.15291425]
[1760813009657,4.14286024,186.17,186.16,16.15291425]
[1760813010848,3.46286024,186.17,186.16,16.15291425]
[1760813011465,3.46286024,186.18,186.16,21.52462943]
[1760813011676,105.56286024,186.19,186.17,0.67]
[1760813012245,105.56286024,186.19,186.16,21.52462943]
[1760813012464,106.24286024,186.19,186.16,21.52462943]
[1760813012656,106.24286024,186.19,186.16,22.19462943]
[1760813015554,3.46286024,186.18,186.16,22.19462943]
[1760813017380,3.46286024,186.18,186.17,0.67]
[1760813017774,105.56286024,186.19,186.17,16.82291425]
[1760813018081,102.1,186.19,186.17,22.1943445]
[1760813018255,102.1,186.19,186.18,0.67]
[1760813018455,102.1,186.19,186.18,16.82291425]
[1760813020190,102.1,186.19,186.18,16.15291425]
[1760813020893,105.56286024,186.19,186.18,16.15291425]
[1760813021688,105.56286024,186.19,186.18,16.82291425]
[1760813022492,105.56286024,186.19,186.18,16.15291425]
[1760813025886,102.1,186.19,186.18,22.19406045]
[1760813026277,102.1,186.19,186.18,16.82291425]
[1760813027202,102.1,186.19,186.18,22.19406045]
[1760813034496,106.26286024,186.19,186.18,16.15291425]
[1760813034699,106.26286024,186.19,186.14,0.2]
[1760813034899,3.46286024,186.15,186.14,0.2]
[1760813035584,3.46286024,186.15,186.14,2.35383786]
[1760813038609,3.46286024,186.15,186.14,3.02383786]
[1760813038995,3.46286024,186.15,186.14,8.39613827]
[1760813040808,3.46286024,186.16,186.14,8.39613827]
[1760813041183,3.46286024,186.16,186.14,6.24230041]
[1760813041608,3.46286024,186.16,186.15,3.62624354]
[1760813050321,3.46286024,186.17,186.15,3.62624354]
[1760813051114,3.46286024,186.17,186.15,4.32624354]
[1760813051504,3.46286024,186.17,186.15,0.7]
[1760813051692,3.46286024,186.17,186.16,5.57230041]
[1760813058126,0.67,186.18,186.16,5.57230041]
[1760813058302,3.46286024,186.17,186.16,6.24230041]
[1760813059021,3.46286024,186.18,186.16,5.57230041]
[1760813060928,3.46286024,186.18,186.16,6.24230041]
[1760813061324,3.46286024,186.18,186.16,0.67]
[1760813061618,105.56286024,186.19,186.17,6.91230041]
[1760813062009,105.56286024,186.19,186.17,0.67]
[1760813062216,105.56286024,186.19,186.18,6.91230041]
[1760813066916,105.56286024,186.19,186.18,7.58230041]
[1760813067642,105.56286024,186.19,186.18,6.91230041]
[1760813069539,102.1,186.19,186.18,7.58230041]
[1760813070117,102.1,186.19,186.18,6.91230041]
[1760813070317,106.23286024,186.19,186.18,6.91230041]
[1760813070843,109.85043441,186.19,186.14,0.2]
[1760813071040,102.1,186.18,186.16,6.91230041]
[1760813071337,102.77,186.18,186.14,0.2]
[1760813071524,102.77,186.18,186.14,7.11230041]
[1760813071717,0.67,186.17,186.14,7.11230041]
[1760813072243,3.46286024,186.15,186.14,7.11230041]
[1760813074539,4.13286024,186.15,186.14,0.2]
[1760813074953,15.00933545,186.15,186.14,0.2]
[1760813075152,18.6257644,186.15,186.14,0.2]
[1760813075870,10.87647521,186.14,186.13,0.2]
[1760813076063,21.41862464,186.14,186.13,0.2]
[1760813076353,21.41862464,186.14,186.04,0.67]
[1760813076354,22.88,186.1,186.04,0.67]
[1760813076655,3.46286024,186.05,186.04,0.67]
[1760813077334,3.46286024,186.05,186.04,4.27855228]
[1760813077646,3.46286024,186.05,186.04,0.67]
[1760813080134,3.46286024,186.06,186.04,0.67]
[1760813081028,3.46286024,186.06,186.03,5.57547376]
[1760813081345,23.55,186.09,186.05,0.67]
[1760813081346,3.46286024,186.07,186.05,0.67]
[1760813081559,3.46286024,186.07,186.06,0.67]
[1760813081735,3.46286024,186.08,186.06,0.67]
[1760813081929,3.46286024,186.09,186.07,0.67]
[1760813082252,3.46286024,186.09,186.04,5.37511927]
[1760813082442,3.46286024,186.09,186.05,0.67]
[1760813083350,3.46286024,186.09,186.06,5.37461034]
[1760813083527,3.46286024,186.09,186.07,0.65]
[1760813084443,3.46286024,186.08,186.07,0.65]
[1760813085354,3.46286024,186.08,186.06,0.65]
[1760813086555,3.46286024,186.08,186.06,6.02460926]
[1760813088052,3.46286024,186.08,186.03,9.03797951]
[1760813088053,3.46286024,186.07,186.05,5.37487816]
[1760813088244,3.46286024,186.07,186.05,6.02487816]
[1760813089062,3.46286024,186.07,186.04,5.37518813]
[1760813089359,3.46286024,186.07,186.04,6.02518813]
[1760813089752,3.46286024,186.07,186.05,0.65]
[1760813090338,3.46286024,186.07,186.06,0.65]
[1760813090541,3.46286024,186.07,186.05,6.02483256]
[1760813090943,3.46286024,186.06,186.05,5.37483256]
[1760813091341,0.7,186.07,186.04,5.37518813]
[1760813091541,3.46286024,186.06,186.04,6.02518813]
[1760813092865,3.46286024,186.06,186.05,6.02489922]
[1760813093053,3.46286024,186.07,186.05,6.02489922]
[1760813094056,3.46286024,186.07,186.04,5.37518813]
[1760813094572,3.46286024,186.07,186.05,0.65]
[1760813095068,3.46286024,186.07,186.05,6.02475546]
[1760813095564,3.46286024,186.06,186.05,6.02475546]
[1760813096167,3.46286024,186.07,186.05,6.02475546]
[1760813097962,3.46286024,186.07,186.06,0.65]
[1760813098771,3.46286024,186.07,186.06,6.02461034]
[1760813100349,3.46286024,186.07,186.04,5.37518813]
[1760813100570,3.46286024,186.06,186.05,0.65]
[1760813101450,3.46286024,186.06,186.03,5.57511927]
[1760813101679,26.34286024,186.12,186.03,0.2]
[1760813101680,3.46286024,186.04,186.03,0.2]
[1760813102173,4.16286024,186.04,186.03,0.2]
[1760813102370,30.50572048,186.04,186.03,0.2]
[1760813104871,41.38219569,186.04,186.03,0.2]
[1760813108263,46.75738382,186.04,185.99,0.2]
[1760813108461,3.46286024,186.0,185.99,0.2]
[1760813109382,3.46286024,186.0,185.99,0.91]
[1760813109580,3.46286024,186.0,185.99,0.2]
[1760813109780,4.16286024,186.0,185.99,0.2]
[1760813110363,3.46286024,186.0,185.99,0.2]
[1760813112870,4.16286024,186.0,185.99,0.2]
[1760813113472,27.04286024,186.0,185.99,0.2]
[1760813115082,4.16286024,186.0,185.99,0.2]
[1760813115673,3.46286024,186.0,185.99,0.86]
[1760813116277,22.88,186.01,185.99,0.86]
[1760813116483,3.46286024,186.01,185.99,0.86]
[1760813116786,3.46286024,186.01,186.0,0.66]
[1760813117779,3.46286024,186.04,186.0,0.66]
[1760813118691,3.46286024,186.03,186.0,6.03627693]
[1760813118874,3.46286024,186.03,186.01,0.66]
[1760813119684,34.47647521,186.07,186.01,0.66]
[1760813119872,3.46286024,186.04,186.01,0.66]
[1760813120189,3.46286024,186.03,186.0,5.37627693]
[1760813120394,3.46286024,186.03,186.02,0.66]
[1760813124587,3.46286024,186.03,186.0,6.03627693]
[1760813124896,3.46286024,186.02,186.01,0.66]
[1760813125409,3.46286024,186.02,185.99,6.23649979]
[1760813125589,3.46286024,186.01,185.99,6.23649979]
[1760813125780,3.46286024,186.01,186.0,0.66]
[1760813126584,3.46286024,186.02,186.0,0.66]
[1760813126795,3.46286024,186.02,186.01,0.66]
[1760813128501,4.18286024,186.02,185.99,0.2]
[1760813128693,3.46286024,186.0,185.99,0.2]
[1760813129291,3.46286024,186.0,185.99,0.86]
[1760813129484,105.56286024,186.01,185.99,0.86]
[1760813129688,102.1,186.01,185.99,0.86]
[1760813129888,102.1,186.01,186.0,0.66]
[1760813131402,102.1,186.01,186.0,6.03634408]
[1760813134685,106.28286024,186.01,185.99,0.2]
[1760813134890,3.46286024,186.0,185.99,0.2]
[1760813135887,3.46286024,186.0,185.99,0.86]
[1760813136083,3.46286024,186.0,185.99,0.2]
[1760813137393,4.18286024,186.0,185.99,0.2]
[1760813137582,3.46286024,186.0,185.99,0.2]
[1760813139901,27.06286024,186.0,185.99,0.2]
[1760813140103,41.54874012,186.0,185.99,0.2]
[1760813146394,40.82874012,186.0,185.99,0.2]
[1760813146615,29.95226491,186.0,185.99,0.2]
[1760813147327,30.67226491,186.0,185.99,0.2]
[1760813148009,29.95226491,186.0,185.99,0.2]
[1760813148927,3.60940467,186.0,185.99,0.2]
[1760813149108,3.46286024,186.0,185.99,0.2]
[1760813149527,26.34286024,186.0,185.99,0.2]
[1760813149826,3.46286024,186.0,185.99,0.2]
[1760813150527,3.46286024,186.0,185.99,0.88]
[1760813151241,3.46286024,186.0,185.99,0.2]
[1760813152304,3.46286024,186.0,185.99,0.88]
[1760813152706,3.46286024,186.0,185.99,0.2]
[1760813153931,3.46286024,186.0,185.99,0.88]
[1760813155418,3.46286024,186.0,185.99,0.2]
[1760813155931,3.46286024,186.0,185.99,0.88]
[1760813157615,22.88,186.01,185.99,0.88]
[1760813157922,3.46286024,186.0,185.99,0.88]
[1760813158226,3.46286024,186.0,185.99,0.2]
[1760813158742,3.46286024,186.0,185.99,0.88]
[1760813159228,3.46286024,186.0,185.99,0.2]
[1760813169622,7.77337781,186.0,185.99,0.2]
[1760813169816,3.46286024,186.0,185.99,0.2]
[1760813170017,7.07337781,186.0,185.99,0.2]
[1760813172352,7.77337781,186.0,185.99,0.2]
[1760813175729,18.64985302,186.0,185.99,0.2]
[1760813177248,24.0261971,186.0,185.99,0.2]
[1760813177831,24.0261971,186.0,185.98,0.2]
[1760813178038,17.94985302,185.99,185.97,0.2]
[1760813178241,7.07337781,185.98,185.97,0.2]
[1760813178437,7.75337781,185.98,185.96,0.2]
[1760813178632,10.53623805,185.97,185.96,0.2]
[1760813179152,34.09623805,185.97,185.96,0.2]
[1760813179455,33.75647521,185.96,185.95,0.2]
[1760813179658,44.29271326,185.96,185.95,0.2]
[1760813179858,44.97271326,185.96,185.95,0.2]
[1760813180336,50.35021379,185.96,185.95,0.2]
[1760813180744,40.82985302,185.96,185.95,0.2]
[1760813181156,40.82865291,185.96,185.95,0.2]
[1760813182346,41.50865291,185.96,185.95,0.2]
[1760813183555,50.34901368,185.96,185.95,0.2]
[1760813185339,50.34901368,185.96,185.9,0.2]
[1760813185545,37.21933545,185.91,185.9,0.2]
[1760813185760,40.82865291,185.91,185.9,0.2]
[1760813185948,41.50865291,185.91,185.9,0.2]
[1760813187744,40.82865291,185.91,185.9,0.2]
[1760813188264,41.50865291,185.91,185.9,0.2]
[1760813188445,37.89933545,185.91,185.9,0.2]
[1760813189564,46.8756651,185.91,185.9,0.2]
[1760813190148,43.41280486,185.91,185.9,0.2]
[1760813190453,10.87647521,185.9,185.88,0.2]
[1760813190643,14.33933545,185.89,185.88,0.2]
[1760813190843,18.61340395,185.89,185.88,0.2]
[1760813191353,20.39886097,185.89,185.88,0.2]
[1760813192464,19.71886097,185.89,185.88,0.2]
[1760813192666,14.33933545,185.89,185.88,0.86]
[1760813193177,37.21933545,185.89,185.88,0.2]
[1760813194866,33.75647521,185.89,185.88,0.2]
[1760813195161,37.21933545,185.89,185.88,0.2]
[1760813196161,33.75647521,185.89,185.88,0.2]
[1760813196361,37.21933545,185.89,185.88,0.86]
[1760813199169,22.88,185.89,185.88,0.86]
[1760813199476,26.34286024,185.89,185.88,0.86]
[1760813200807,3.46286024,185.89,185.88,0.86]
[1760813201181,22.88,185.9,185.88,0.86]
[1760813201497,3.46286024,185.89,185.88,0.86]
[1760813201706,3.46286024,185.9,185.88,0.2]
[1760813201890,3.46286024,185.9,185.89,0.66]
[1760813207700,105.56286024,185.91,185.89,0.66]
[1760813209496,102.1,185.91,185.89,0.66]
[1760813210696,105.56286024,185.91,185.89,0.66]
[1760813210901,3.46286024,185.9,185.89,0.66]
[1760813212903,105.56286024,185.91,185.89,0.66]
[1760813213996,3.46286024,185.9,185.89,0.66]
[1760813214576,3.46286024,185.9,185.88,0.86]
[1760813215675,4.16286024,185.89,185.88,0.2]
[1760813216276,27.04286024,185.89,185.88,0.2]
[1760813219299,26.34286024,185.89,185.88,0.2]
[1760813219885,27.04286024,185.89,185.88,0.2]
[1760813221792,26.34286024,185.89,185.88,0.2]
[1760813222380,29.94625656,185.89,185.88,0.86]
[1760813222584,26.34286024,185.89,185.88,0.86]
[1760813224195,22.88,185.89,185.88,0.86]
[1760813224393,3.46286024,185.9,185.88,0.86]
[1760813224599,3.46286024,185.9,185.89,0.66]
[1760813227622,3.46286024,185.91,185.89,0.66]
[1760813227993,3.46286024,185.91,185.88,5.7800567]
[1760813228194,3.46286024,185.91,185.89,0.65]
[1760813229210,3.60105635,185.93,185.89,6.02940984]
[1760813229408,3.60105635,185.93,185.9,0.65]
[1760813229409,3.46286024,185.93,185.9,0.65]
[1760813229611,3.46286024,185.92,185.91,0.65]
[1760813230716,124.98,185.93,185.91,0.65]
[1760813230717,102.1,185.93,185.91,0.65]
[1760813232224,23.57,185.97,185.91,6.02894515]
[1760813232225,3.46286024,185.95,185.91,6.02894515]
[1760813232532,3.46286024,185.95,185.92,0.65]
[1760813232821,3.46286024,185.95,185.93,0.65]
[1760813233296,3.46286024,185.96,185.93,0.65]
[1760813235215,105.56286024,185.97,185.93,6.02824055]
[1760813235519,105.56286024,185.97,185.94,0.67]
[1760813235814,3.46286024,185.96,185.94,0.67]
[1760813236021,3.46286024,185.95,185.94,0.67]
[1760813237207,3.46286024,185.96,185.94,0.67]
[1760813237406,105.56286024,185.97,185.94,0.67]
[1760813237604,105.56286024,185.97,185.95,0.67]
[1760813237830,23.55,186.0,185.93,5.37824055]
[1760813237831,102.1,185.96,185.93,5.37824055]
[1760813238317,102.1,185.96,185.94,0.67]
[1760813238519,102.1,185.96,185.94,16.83863742]
[1760813238705,102.1,185.96,185.94,16.16863742]
[1760813238914,102.1,185.96,185.95,0.67]
[1760813239323,102.1,185.96,185.95,6.04778972]
[1760813239507,102.1,185.96,185.95,9.51064996]
[1760813240520,3.46286024,186.02,185.95,22.95512428]
[1760813240717,105.56286024,186.03,185.97,3.46286024]
[1760813241025,105.56286024,186.03,185.98,0.67]
[1760813241338,3.46286024,186.02,185.99,0.67]
[1760813241528,3.46286024,186.02,185.99,6.04644297]
[1760813242920,106.23286024,186.03,185.99,6.04644297]
[1760813243425,106.23286024,186.03,185.99,22.21328477]
[1760813243821,106.23286024,186.03,186.0,0.67]
[1760813244028,105.56286024,186.03,186.0,0.67]
[1760813244403,106.23286024,186.03,185.99,6.04644297]
[1760813244620,106.23286024,186.03,185.99,22.21328477]
[1760813244823,105.56286024,186.03,186.0,0.67]
[1760813245020,102.1,186.03,186.01,0.67]
[1760813245424,105.56286024,186.03,185.99,22.21328477]
[1760813245735,105.56286024,186.03,186.0,0.67]
[1760813245936,105.56286024,186.03,186.01,0.67]
[1760813248235,105.56286024,186.03,186.0,5.37633106]
[1760813249035,105.56286024,186.03,186.01,0.67]
[1760813249411,102.1,186.03,186.0,5.37633106]
[1760813249727,102.1,186.03,186.02,0.67]
[1760813250331,102.1,186.03,186.0,6.04633106]
[1760813250535,102.1,186.03,186.01,6.0459698]
[1760813251112,102.1,186.03,186.01,22.21106935]
[1760813251428,102.1,186.03,186.01,6.0459698]
[1760813251931,102.1,186.03,186.01,0.67]
[1760813252134,4.13286024,186.02,185.96,5.37729451]
[1760813252335,3.46286024,185.98,185.96,16.16509955]
[1760813252628,3.46286024,185.98,185.94,0.67]
[1760813252629,3.46286024,185.97,185.94,0.67]
[1760813252839,3.46286024,185.96,185.94,16.83509955]
[1760813253237,3.46286024,185.96,185.94,0.67]
[1760813253737,3.46286024,185.96,185.94,6.04797479]
[1760813254829,3.46286024,185.96,185.94,5.37797479]
[1760813256023,3.46286024,185.96,185.93,22.21952221]
[1760813256223,3.46286024,185.94,185.91,5.37891421]
[1760813256533,3.46286024,185.93,185.91,22.22185687]
[1760813257119,3.46286024,185.92,185.91,16.17294266]
[1760813257351,3.46286024,185.92,185.9,5.37917253]
[1760813257517,22.88,185.98,185.91,0.67]
[1760813257518,3.46286024,185.94,185.91,0.67]
[1760813258336,3.46286024,185.94,185.91,6.04892428]
[1760813258825,3.46286024,185.96,185.92,0.67]
[1760813259521,3.46286024,185.98,185.92,4.13286024]
[1760813259721,3.46286024,185.98,185.93,0.67]
[1760813259936,3.46286024,185.98,185.93,20.30318768]
[1760813260137,3.46286024,185.98,185.94,0.67]
[1760813260340,3.46286024,185.97,185.94,6.04785411]
[1760813261525,3.46286024,185.96,185.94,6.04785411]
[1760813261927,3.46286024,185.96,185.94,5.37785411]
[1760813262524,3.46286024,185.96,185.94,6.04785411]
[1760813262846,3.46286024,185.97,185.94,6.04785411]
[1760813263049,3.46286024,185.97,185.94,5.37785411]
[1760813263533,3.46286024,185.96,185.94,5.37785411]
[1760813265239,3.46286024,185.96,185.93,16.84032744]
[1760813265441,3.46286024,185.96,185.93,6.04832759]
[1760813267643,3.46286024,185.96,185.93,5.37832759]
[1760813267848,4.15286024,185.96,185.93,5.37832759]
[1760813268244,3.46286024,185.96,185.93,6.04832759]
[1760813268832,3.46286024,185.95,185.93,6.04832759]
[1760813269664,3.46286024,185.96,185.93,6.04832759]
[1760813269869,105.56286024,185.97,185.94,0.67]
[1760813270932,106.25286024,185.97,185.94,0.67]
[1760813271143,106.25286024,185.97,185.93,5.37832759]
[1760813271356,106.25286024,185.97,185.93,6.04832759]
[1760813271640,3.46286024,185.96,185.93,6.04832759]
[1760813272861,105.56286024,185.97,185.94,0.67]
[1760813273839,105.56286024,185.97,185.94,6.04794116]
[1760813280453,102.1,185.97,185.95,0.67]
[1760813280661,102.1,185.97,185.96,0.67]
[1760813282236,102.1,185.97,185.94,22.2182686]
[1760813282441,105.56286024,185.97,185.94,6.04794116]
[1760813282953,102.1,185.97,185.94,6.04794116]
[1760813283143,102.1,185.97,185.94,5.37794116]
[1760813283357,102.1,185.97,185.95,0.67]
[1760813284262,102.1,185.97,185.95,6.04758958]
[1760813286044,102.1,185.97,185.95,5.37758958]
[1760813286445,102.1,185.97,185.95,6.05758958]
[1760813289471,105.56286024,185.97,185.95,6.05758958]
[1760813290064,102.1,185.97,185.95,6.05758958]
[1760813292786,102.1,185.97,185.96,0.68]
[1760813293768,102.1,186.02,185.96,4.14286024]
[1760813293959,102.1,186.02,185.96,16.1668418]
[1760813293960,4.15286024,186.01,185.96,16.1668418]
[1760813294157,3.46286024,185.99,185.96,16.1668418]
[1760813294362,4.15286024,185.99,185.96,16.1668418]
[1760813294749,4.15286024,185.99,185.97,5.37721137]
[1760813296354,3.61201331,186.01,185.97,5.37721137]
[1760813296560,3.46286024,185.99,185.97,5.37721137]
[1760813296956,4.15286024,186.0,185.97,5.37721137]
[1760813298665,4.15286024,186.0,185.97,6.06721137]
[1760813299169,0.69,186.0,185.97,6.06721137]
[1760813299366,7.07487355,186.01,185.97,6.06721137]
[1760813299561,7.07487355,186.01,185.98,0.69]
[1760813299769,3.46286024,186.01,185.98,0.69]
[1760813300478,4.15286024,186.01,185.98,0.69]
[1760813300778,3.46286024,185.99,185.97,5.37721137]
[1760813300963,0.69,185.98,185.97,5.37721137]
[1760813301163,4.15286024,185.98,185.94,5.37807895]
[1760813301390,3.46286024,185.97,185.94,6.06807895]
[1760813301679,3.46286024,185.97,185.95,3.61169134]
[1760813301873,3.46286024,185.96,185.93,5.37836425]
[1760813302083,102.1,186.02,185.94,3.61169134]
[1760813302084,4.15286024,185.95,185.94,3.61169134]
[1760813302253,4.15286024,185.95,185.91,13.44730401]
[1760813302459,3.46286024,185.94,185.91,6.0689468]
[1760813303079,4.15286024,185.94,185.91,5.3789468]
[1760813303576,4.15286024,185.94,185.91,6.0689468]
[1760813304380,3.46286024,185.93,185.91,5.3789468]
[1760813305379,4.15286024,185.93,185.89,18.82768395]
[1760813305590,3.46286024,185.91,185.89,5.37952552]
[1760813305968,3.46286024,185.91,185.89,6.06952552]
[1760813306283,3.46286024,185.92,185.89,6.06952552]
[1760813308271,4.15286024,185.92,185.89,6.06952552]
[1760813308473,3.46286024,185.9,185.88,0.2]
[1760813308672,3.46286024,185.89,185.88,0.2]
[1760813308874,4.15286024,185.89,185.88,0.2]
[1760813312291,27.03286024,185.89,185.88,0.2]
[1760813312589,15.02933545,185.89,185.88,0.2]
[1760813313267,4.15286024,185.89,185.88,0.2]
[1760813315292,15.02933545,185.89,185.88,0.2]
[1760813317064,4.15286024,185.89,185.88,0.2]
[1760813319469,3.46286024,185.89,185.88,0.2]
[1760813323074,3.46286024,185.89,185.88,0.89]
[1760813323075,22.88,185.89,185.88,0.89]
[1760813323389,3.46286024,185.89,185.88,0.89]
[1760813327895,3.46286024,185.92,185.88,6.26972583]
[1760813328193,5.37696766,185.98,185.89,0.66]
[1760813328194,3.46286024,185.91,185.89,0.66]
[1760813328402,3.46286024,185.9,185.88,16.34021595]
[1760813328604,3.46286024,185.9,185.88,5.57978931]
[1760813328788,3.46286024,185.9,185.88,21.75534804]
[1760813328987,3.46286024,185.9,185.89,0.66]
[1760813329197,3.46286024,185.91,185.88,21.75534804]
[1760813329497,3.46286024,185.92,185.88,5.57978931]
[1760813329797,3.46286024,185.92,185.88,21.75534804]
[1760813330801,3.46286024,185.91,185.88,21.75534804]
[1760813331298,3.46286024,185.91,185.89,0.66]
[1760813331502,3.46286024,185.91,185.9,0.66]
[1760813335609,3.46286024,185.92,185.9,6.03922627]
[1760813335807,3.46286024,185.92,185.91,0.66]
[1760813337006,3.46286024,185.92,185.89,21.55501447]
[1760813337208,3.46286024,185.92,185.9,0.66]
[1760813338310,3.46286024,185.92,185.91,0.66]
[1760813338992,3.46286024,185.92,185.89,0.66]
[1760813339308,3.46286024,185.92,185.9,0.66]
[1760813345113,3.46286024,185.91,185.9,0.66]
[1760813345311,3.46286024,185.91,185.88,16.37555873]
[1760813345514,3.46286024,185.89,185.88,0.2]
[1760813346019,4.14286024,185.89,185.88,0.2]
[1760813346709,27.02286024,185.89,185.88,0.2]
[1760813346911,30.63512133,185.89,185.88,0.2]
[1760813349119,41.51159654,185.89,185.88,0.2]
[1760813356300,46.89112206,185.89,185.88,0.2]
[1760813356933,10.87647521,185.88,185.87,0.2]
[1760813357106,21.41445678,185.88,185.87,0.2]
[1760813357306,22.07445678,185.88,185.87,0.2]
[1760813357918,27.45427171,185.88,185.87,0.2]
[1760813358917,7.07512133,185.88,185.87,0.9]
[1760813359231,102.1,185.88,185.87,0.9]
[1760813360205,3.46286024,185.89,185.87,0.9]
[1760813360410,26.34286024,185.9,185.88,0.7]
[1760813360612,26.34286024,185.9,185.87,0.2]
[1760813360815,26.34286024,185.9,185.89,0.7]
[1760813362116,26.34286024,185.9,185.87,0.9]
[1760813362425,3.46286024,185.89,185.88,0.7]
[1760813365218,4.12286024,185.89,185.87,0.2]
[1760813365422,22.88,185.9,185.87,0.2]
[1760813365423,4.12286024,185.88,185.87,0.2]
[1760813367637,3.46286024,185.88,185.87,0.2]
[1760813369442,3.46286024,185.88,185.87,0.9]
[1760813369640,102.1,185.89,185.87,0.9]
[1760813369818,105.56286024,185.89,185.88,0.7]
[1760813370525,105.56286024,185.89,185.87,0.2]
[1760813370731,3.46286024,185.88,185.87,0.2]
[1760813371118,3.46286024,185.88,185.87,0.9]
[1760813373517,3.46286024,185.88,185.87,0.2]
[1760813375025,3.46286024,185.88,185.87,0.9]
[1760813375323,102.1,185.89,185.87,0.2]
[1760813375538,3.46286024,185.9,185.88,0.7]
[1760813376842,4.27293784,185.92,185.89,0.7]
[1760813376843,3.46286024,185.91,185.89,0.7]
[1760813377043,3.46286024,185.91,185.9,0.7]
[1760813377247,105.71293784,185.92,185.9,0.7]
[1760813377431,102.1,185.92,185.9,0.7]
[1760813377951,102.1,185.92,185.9,6.28009993]
[1760813378123,102.1,185.92,185.88,3.46286024]
[1760813378320,102.1,185.92,185.89,6.98009993]
[1760813378530,102.1,185.92,185.9,0.7]
[1760813380755,102.1,185.92,185.9,6.07921923]
[1760813381126,102.1,185.92,185.91,0.7]
[1760813390343,102.1,185.92,185.91,6.0789468]
[1760813390749,102.1,185.92,185.91,22.25363341]
[1760813391149,102.1,185.92,185.91,6.0789468]